[Event "*** MasterClass Titled Tuesday Blitz"]
[Site "Chess.com"]
[Date "2017.12.12"]
[Round "2"]
[White "FearNoEvil12"]
[Black "GameOverBro"]
[Result "0-1"]
[WhiteElo "2047"]
[BlackElo "2245"]
[TimeControl "180+2"]
[EndTime "13:24:27 PST"]
[Termination "GameOverBro won by resignation"]

1. e4 {[%clk 0:03:01.9]} 1... d6 {[%clk 0:03:00.7]} 2. Nc3 {[%clk 0:03:01.3]}
2... Nf6 {[%clk 0:03:02.1]} 3. f4 {[%clk 0:03:02.7]} 3... d5 {[%clk 0:03:03.1]}
4. e5 {[%clk 0:03:01.8]} 4... d4 {[%clk 0:03:04]} 5. exf6 {[%clk 0:03:01]} 5...
dxc3 {[%clk 0:03:05.9]} 6. fxg7 {[%clk 0:03:01.4]} 6... cxd2+ {[%clk 0:03:07.1]}
7. Bxd2 {[%clk 0:03:02.6]} 7... Bxg7 {[%clk 0:03:08]} 8. Qh5 {[%clk 0:03:00.7]}
8... Qd4 {[%clk 0:03:08.5]} 9. Nf3 {[%clk 0:02:51.7]} 9... Qxb2 {[%clk
0:03:07.1]} 10. Rd1 {[%clk 0:02:51.7]} 10... Be6 {[%clk 0:03:06]} 11. Bd3 {[%clk
0:02:48.8]} 11... Nd7 {[%clk 0:03:02]} 12. O-O {[%clk 0:02:46.6]} 12... O-O-O
{[%clk 0:02:49.5]} 13. Rb1 {[%clk 0:02:46]} 13... Qa3 {[%clk 0:02:44.8]} 14. Qb5
{[%clk 0:02:32.3]} 14... Qc5+ {[%clk 0:02:45]} 15. Kh1 {[%clk 0:02:27.3]} 15...
Qxb5 {[%clk 0:02:45.4]} 16. Rxb5 {[%clk 0:02:27.3]} 16... a6 {[%clk 0:02:45.4]}
17. Rb4 {[%clk 0:02:19.9]} 17... Nc5 {[%clk 0:02:42.1]} 18. Rfb1 {[%clk
0:02:12.2]} 18... Nxd3 {[%clk 0:02:39.8]} 19. cxd3 {[%clk 0:02:12]} 19... Bd5
{[%clk 0:02:35.1]} 20. Ne5 {[%clk 0:02:06.1]} 20... Bxe5 {[%clk 0:02:31.1]} 21.
fxe5 {[%clk 0:02:06.4]} 21... Bxa2 {[%clk 0:02:32.6]} 22. R1b2 {[%clk
0:02:02.7]} 22... Bd5 {[%clk 0:02:33.1]} 23. d4 {[%clk 0:02:01.7]} 23... b6
{[%clk 0:02:29.7]} 24. Kg1 {[%clk 0:02:00.1]} 24... Rhg8 {[%clk 0:02:29.7]} 25.
g3 {[%clk 0:02:00.3]} 25... a5 {[%clk 0:02:27.8]} 26. Ra4 {[%clk 0:01:58.8]}
26... Bc6 {[%clk 0:02:27.3]} 27. Ra1 {[%clk 0:01:57.5]} 27... Rxd4 {[%clk
0:02:26.3]} 28. Be3 {[%clk 0:01:45.5]} 28... Rd3 {[%clk 0:02:18.7]} 29. Kf2
{[%clk 0:01:45.4]} 29... Rg4 {[%clk 0:02:09.7]} 30. Rc1 {[%clk 0:01:43.8]} 30...
Kd7 {[%clk 0:01:55.8]} 31. Rbc2 {[%clk 0:01:43.2]} 31... Bd5 {[%clk 0:01:51.5]}
32. Rxc7+ {[%clk 0:01:42.2]} 32... Ke6 {[%clk 0:01:52.8]} 33. Bf4 {[%clk
0:01:34.3]} 33... Rb3 {[%clk 0:01:44.5]} 34. R1c2 {[%clk 0:01:29.3]} 34... a4
{[%clk 0:01:44.5]} 35. h3 {[%clk 0:01:23]} 35... Rg8 {[%clk 0:01:44.5]} 36. Ra7
{[%clk 0:01:21.8]} 36... b5 {[%clk 0:01:43.6]} 37. Rcc7 {[%clk 0:01:21.6]} 37...
Re8 {[%clk 0:01:44.9]} 38. g4 {[%clk 0:01:11.6]} 38... Bc4 {[%clk 0:01:45.6]}
39. Ra6+ {[%clk 0:00:40.4]} 39... Kd5 {[%clk 0:01:46]} 40. Raa7 {[%clk
0:00:33.2]} 40... Ke4 {[%clk 0:01:46]} 41. Bh6 {[%clk 0:00:22.3]} 41... Rxh3
{[%clk 0:01:40.3]} 42. Bg5 {[%clk 0:00:18.7]} 42... Kxe5 {[%clk 0:01:35.1]} 43.
Rxe7+ {[%clk 0:00:18]} 43... Rxe7 {[%clk 0:01:35.7]} 44. Rxe7+ {[%clk
0:00:19.3]} 44... Kd5 {[%clk 0:01:33.7]} 45. Rxf7 {[%clk 0:00:17.4]} 45... a3
{[%clk 0:01:33.7]} 46. Ra7 {[%clk 0:00:17.1]} 46... a2 {[%clk 0:01:34.6]} 47.
Bf6 {[%clk 0:00:17.5]} 47... b4 {[%clk 0:01:27.2]} 48. g5 {[%clk 0:00:19.4]}
48... b3 {[%clk 0:01:27.4]} 49. Kg2 {[%clk 0:00:19.9]} 49... Rh5 {[%clk
0:01:22.8]} 50. Kg3 {[%clk 0:00:19.6]} 50... Bd3 {[%clk 0:01:10.5]} 51. Kg4
{[%clk 0:00:19.2]} 51... Bg6 {[%clk 0:01:08.2]} 52. Kg3 {[%clk 0:00:20.3]} 52...
Rh1 {[%clk 0:01:06.9]} 53. Kg2 {[%clk 0:00:19.5]} 53... Rc1 {[%clk 0:01:05.3]}
54. Kg3 {[%clk 0:00:19.9]} 54... Rc6 {[%clk 0:01:05.7]} 55. Ra5+ {[%clk
0:00:17.6]} 55... Kc4 {[%clk 0:01:02.4]} 56. Bg7 {[%clk 0:00:16.3]} 56... Rc5
{[%clk 0:00:57.7]} 57. Ra4+ {[%clk 0:00:14.2]} 57... Kd3 {[%clk 0:00:57.9]} 58.
Ra3 {[%clk 0:00:15.4]} 58... Kc2 {[%clk 0:00:58.8]} 59. Kf4 {[%clk 0:00:14.5]}
59... Rc7 {[%clk 0:00:59]} 60. Be5 {[%clk 0:00:14.1]} 60... Rc4+ {[%clk
0:00:59.9]} 61. Kf3 {[%clk 0:00:13.1]} 61... Rc5 {[%clk 0:00:58.9]} 62. Bd4
{[%clk 0:00:12.8]} 62... Rxg5 {[%clk 0:00:58.4]} 63. Kf4 {[%clk 0:00:12.8]}
63... Rb5 {[%clk 0:00:59.2]} 64. Bf6 {[%clk 0:00:12.1]} 64... Kb1 {[%clk
0:00:59.3]} 65. Ke3 {[%clk 0:00:11.1]} 65... b2 {[%clk 0:01:00]} 66. Kd2 {[%clk
0:00:08.4]} 66... a1=Q {[%clk 0:00:55.1]} 0-1

[Event "*** MasterClass Titled Tuesday Blitz"]
[Site "Chess.com"]
[Date "2017.12.12"]
[Round "2"]
[White "Bryakin_Mikhail"]
[Black "JSPrepz"]
[Result "0-1"]
[WhiteElo "2554"]
[BlackElo "2726"]
[TimeControl "180+2"]
[EndTime "13:24:39 PST"]
[Termination "JSPrepz won by resignation"]

1. d4 {[%clk 0:02:57.5]} 1... Nf6 {[%clk 0:03:00.9]} 2. c4 {[%clk 0:02:58.8]}
2... c5 {[%clk 0:03:01.8]} 3. d5 {[%clk 0:02:59]} 3... b5 {[%clk 0:03:03.1]} 4.
cxb5 {[%clk 0:02:59.7]} 4... a6 {[%clk 0:03:04.5]} 5. e3 {[%clk 0:03:00.9]} 5...
Bb7 {[%clk 0:03:01.4]} 6. Nc3 {[%clk 0:03:00.8]} 6... axb5 {[%clk 0:03:02.7]} 7.
Bxb5 {[%clk 0:03:01]} 7... Qa5 {[%clk 0:03:03.7]} 8. Bd2 {[%clk 0:02:58.4]} 8...
Qb6 {[%clk 0:03:03.3]} 9. a4 {[%clk 0:02:55.1]} 9... Nxd5 {[%clk 0:03:03.5]} 10.
Nxd5 {[%clk 0:02:50.4]} 10... Bxd5 {[%clk 0:03:05.4]} 11. Nf3 {[%clk 0:02:50.3]}
11... Bc6 {[%clk 0:03:03.5]} 12. Bxc6 {[%clk 0:02:42.3]} 12... Nxc6 {[%clk
0:03:05.4]} 13. Bc3 {[%clk 0:02:42.9]} 13... e6 {[%clk 0:03:01.9]} 14. O-O
{[%clk 0:02:41.8]} 14... f6 {[%clk 0:03:00.6]} 15. e4 {[%clk 0:02:39.9]} 15...
Be7 {[%clk 0:03:01.1]} 16. e5 {[%clk 0:02:39]} 16... f5 {[%clk 0:02:59.8]} 17.
Nd2 {[%clk 0:02:35.4]} 17... Qa6 {[%clk 0:02:57.6]} 18. f4 {[%clk 0:02:13.8]}
18... O-O {[%clk 0:02:56]} 19. Qb3 {[%clk 0:02:05.3]} 19... Rfb8 {[%clk
0:02:53]} 20. Qc4 {[%clk 0:02:05.6]} 20... Qb6 {[%clk 0:02:46.1]} 21. Rfd1
{[%clk 0:01:54.2]} 21... Na5 {[%clk 0:02:43.1]} 22. Qe2 {[%clk 0:01:53.6]} 22...
Rb7 {[%clk 0:02:36]} 23. Kf1 {[%clk 0:01:48.8]} 23... Qc6 {[%clk 0:02:22]} 24.
Qf3 {[%clk 0:01:30.9]} 24... Qxf3+ {[%clk 0:02:19.6]} 25. Nxf3 {[%clk
0:01:23.1]} 25... Nb3 {[%clk 0:02:08.2]} 26. Ra2 {[%clk 0:01:24.1]} 26... Rba7
{[%clk 0:02:09.6]} 27. Nd2 {[%clk 0:01:24.1]} 27... Nxd2+ {[%clk 0:02:02.7]} 28.
Rxd2 {[%clk 0:01:24.4]} 28... Kf7 {[%clk 0:02:04.6]} 29. a5 {[%clk 0:01:17.8]}
29... g5 {[%clk 0:02:02.6]} 30. fxg5 {[%clk 0:01:14.8]} 30... Bxg5 {[%clk
0:02:04.5]} 31. Rd6 {[%clk 0:01:14.7]} 31... Bd8 {[%clk 0:01:58.5]} 32. Ra4
{[%clk 0:01:03.8]} 32... Ke8 {[%clk 0:01:55.5]} 33. Rd3 {[%clk 0:00:48.4]} 33...
Bxa5 {[%clk 0:01:48]} 34. Rh4 {[%clk 0:00:49]} 34... Bxc3 {[%clk 0:01:48.6]} 35.
bxc3 {[%clk 0:00:42.1]} 35... Ra1+ {[%clk 0:01:47.7]} 36. Kf2 {[%clk 0:00:42.8]}
36... R8a2+ {[%clk 0:01:45.7]} 37. Kg3 {[%clk 0:00:27.1]} 37... Rg1 {[%clk
0:01:46.5]} 38. Rxh7 {[%clk 0:00:24.5]} 38... Rgxg2+ {[%clk 0:01:40.5]} 39. Kf3
{[%clk 0:00:25.7]} 39... Rxh2 {[%clk 0:01:22.3]} 40. Rdxd7 {[%clk 0:00:19]}
40... Rxh7 {[%clk 0:01:21.9]} 41. Rxh7 {[%clk 0:00:20.9]} 41... Rc2 {[%clk
0:01:18.6]} 42. Kf4 {[%clk 0:00:22.2]} 42... Rg2 {[%clk 0:00:57.1]} 43. Rc7
{[%clk 0:00:22.6]} 43... Rg4+ {[%clk 0:00:58.2]} 44. Kf3 {[%clk 0:00:21.6]}
44... Rc4 {[%clk 0:00:59.3]} 45. Ke3 {[%clk 0:00:20.9]} 45... Re4+ {[%clk
0:00:59.9]} 46. Kf3 {[%clk 0:00:22.1]} 46... Rxe5 {[%clk 0:01:01.8]} 47. Kf4
{[%clk 0:00:23.6]} 47... Rd5 {[%clk 0:00:59.4]} 48. Kg5 {[%clk 0:00:24.1]} 48...
Kd8 {[%clk 0:01:00.5]} 49. Ra7 {[%clk 0:00:24.7]} 49... Rd3 {[%clk 0:00:44.6]}
50. Kf6 {[%clk 0:00:24.6]} 50... Re3 {[%clk 0:00:46]} 51. c4 {[%clk 0:00:21.5]}
51... f4 {[%clk 0:00:46]} 52. Ra8+ {[%clk 0:00:10.4]} 52... Kd7 {[%clk
0:00:46.6]} 53. Rf8 {[%clk 0:00:10.9]} 53... f3 {[%clk 0:00:45.8]} 54. Kg5
{[%clk 0:00:11.3]} 54... e5 {[%clk 0:00:46.1]} 55. Kg4 {[%clk 0:00:09.2]} 55...
e4 {[%clk 0:00:47.3]} 56. Kf4 {[%clk 0:00:10.1]} 56... Re2 {[%clk 0:00:47.4]}
57. Ke5 {[%clk 0:00:11.6]} 57... f2 {[%clk 0:00:46.3]} 58. Rf7+ {[%clk
0:00:12.5]} 58... Ke8 {[%clk 0:00:47.1]} 59. Ke6 {[%clk 0:00:11.9]} 59... e3
{[%clk 0:00:46]} 60. Rf3 {[%clk 0:00:13]} 60... Re1 {[%clk 0:00:43.4]} 0-1

[Event "*** MasterClass Titled Tuesday Blitz"]
[Site "Chess.com"]
[Date "2017.12.12"]
[Round "2"]
[White "RobertoJBM"]
[Black "chidori_boruto"]
[Result "1-0"]
[WhiteElo "2617"]
[BlackElo "2515"]
[TimeControl "180+2"]
[EndTime "13:24:41 PST"]
[Termination "RobertoJBM won on time"]

1. d4 {[%clk 0:03:01.9]} 1... Nf6 {[%clk 0:02:43.5]} 2. Nf3 {[%clk 0:03:00.2]}
2... e6 {[%clk 0:02:44.7]} 3. c4 {[%clk 0:02:59.9]} 3... b6 {[%clk 0:02:45]} 4.
g3 {[%clk 0:03:00.2]} 4... Ba6 {[%clk 0:02:45.7]} 5. Qa4 {[%clk 0:03:00]} 5...
Bb7 {[%clk 0:02:43.6]} 6. Bg2 {[%clk 0:03:01.1]} 6... c5 {[%clk 0:02:44.5]} 7.
dxc5 {[%clk 0:03:00]} 7... Bxc5 {[%clk 0:02:43.9]} 8. O-O {[%clk 0:03:01.1]}
8... O-O {[%clk 0:02:43.2]} 9. Nc3 {[%clk 0:03:02.2]} 9... d5 {[%clk 0:02:33.9]}
10. Ne5 {[%clk 0:02:56.7]} 10... Qe7 {[%clk 0:02:14.5]} 11. Bg5 {[%clk 0:02:53]}
11... dxc4 {[%clk 0:01:52.2]} 12. Bxb7 {[%clk 0:02:51.9]} 12... Qxb7 {[%clk
0:01:50.2]} 13. Bxf6 {[%clk 0:02:51.4]} 13... gxf6 {[%clk 0:01:51.1]} 14. Nxc4
{[%clk 0:02:50.7]} 14... Nc6 {[%clk 0:01:41.1]} 15. e3 {[%clk 0:02:42.6]} 15...
Rfd8 {[%clk 0:01:36.4]} 16. Rad1 {[%clk 0:02:42.3]} 16... a6 {[%clk 0:01:35]}
17. Nd2 {[%clk 0:02:42.6]} 17... Ne5 {[%clk 0:01:34.2]} 18. Qe4 {[%clk 0:02:40]}
18... Qxe4 {[%clk 0:01:24.6]} 19. Ndxe4 {[%clk 0:02:41.9]} 19... Be7 {[%clk
0:01:23.4]} 20. Rxd8+ {[%clk 0:02:30.7]} 20... Rxd8 {[%clk 0:01:23.3]} 21. Rd1
{[%clk 0:02:32.6]} 21... Rxd1+ {[%clk 0:01:14.9]} 22. Nxd1 {[%clk 0:02:34.5]}
22... f5 {[%clk 0:01:13.6]} 23. Nd2 {[%clk 0:02:34.8]} 23... Bb4 {[%clk
0:01:07.5]} 24. Nb3 {[%clk 0:02:31]} 24... Kf8 {[%clk 0:01:07.9]} 25. Kf1 {[%clk
0:02:27.9]} 25... Ke7 {[%clk 0:01:08]} 26. Ke2 {[%clk 0:02:29]} 26... a5 {[%clk
0:01:00.6]} 27. Nd4 {[%clk 0:02:28.5]} 27... Bc5 {[%clk 0:00:57.4]} 28. Nb5
{[%clk 0:02:28.2]} 28... Kd7 {[%clk 0:00:56.9]} 29. f4 {[%clk 0:02:25.9]} 29...
Ng4 {[%clk 0:00:55.5]} 30. h3 {[%clk 0:02:25.4]} 30... Nf6 {[%clk 0:00:57.1]}
31. Nbc3 {[%clk 0:02:24.9]} 31... Kc6 {[%clk 0:00:57.3]} 32. a4 {[%clk 0:02:23]}
32... Bb4 {[%clk 0:00:57.7]} 33. Kd3 {[%clk 0:02:24.2]} 33... Nd7 {[%clk
0:00:53.9]} 34. Kc4 {[%clk 0:02:21]} 34... Nf6 {[%clk 0:00:48.6]} 35. Kd3 {[%clk
0:02:21.2]} 35... Nd7 {[%clk 0:00:49.2]} 36. Kc4 {[%clk 0:02:21.5]} 36... Nf6
{[%clk 0:00:50.3]} 37. Nb5 {[%clk 0:02:14.4]} 37... Bc5 {[%clk 0:00:48.9]} 38.
Nd4+ {[%clk 0:02:07.2]} 38... Kd6 {[%clk 0:00:47.1]} 39. Nc3 {[%clk 0:02:02.3]}
39... Kd7 {[%clk 0:00:26.9]} 40. Kd3 {[%clk 0:01:56.8]} 40... Kd6 {[%clk
0:00:27.1]} 41. b3 {[%clk 0:01:54.6]} 41... Bb4 {[%clk 0:00:27.2]} 42. Ncb5+
{[%clk 0:01:40.1]} 42... Kc5 {[%clk 0:00:27.3]} 43. Nf3 {[%clk 0:01:40.6]} 43...
Ne4 {[%clk 0:00:27.3]} 44. Ng5 {[%clk 0:01:22.7]} 44... Nxg5 {[%clk 0:00:25]}
45. fxg5 {[%clk 0:01:24.6]} 45... Kd5 {[%clk 0:00:24.9]} 46. Nc7+ {[%clk
0:01:21]} 46... Kd6 {[%clk 0:00:25.7]} 47. Ne8+ {[%clk 0:01:21.6]} 47... Ke7
{[%clk 0:00:26.3]} 48. Nf6 {[%clk 0:01:23.5]} 48... Bd6 {[%clk 0:00:22.8]} 49.
g4 {[%clk 0:01:22.6]} 49... fxg4 {[%clk 0:00:23.1]} 50. hxg4 {[%clk 0:01:24.5]}
50... Be5 {[%clk 0:00:21.8]} 51. Nxh7 {[%clk 0:01:23]} 51... Bg7 {[%clk
0:00:22.9]} 52. Kc4 {[%clk 0:01:20.8]} 52... Kd6 {[%clk 0:00:22]} 53. Kb5 {[%clk
0:01:21.8]} 53... Kc7 {[%clk 0:00:22.9]} 54. e4 {[%clk 0:01:22.3]} 54... Kb7
{[%clk 0:00:21.8]} 55. Nf6 {[%clk 0:01:23.4]} 55... Bf8 {[%clk 0:00:20.5]} 56.
Nd7 {[%clk 0:01:24.4]} 56... Be7 {[%clk 0:00:21.3]} 57. g6 {[%clk 0:01:20.8]}
57... fxg6 {[%clk 0:00:21.7]} 58. Nxb6 {[%clk 0:01:22.4]} 58... Bd8 {[%clk
0:00:20.9]} 59. Nc4 {[%clk 0:01:24]} 59... Kc7 {[%clk 0:00:21.3]} 60. Nxa5
{[%clk 0:01:19.6]} 60... Kd7 {[%clk 0:00:21.8]} 61. Nc4 {[%clk 0:01:20]} 61...
Kc7 {[%clk 0:00:22.7]} 62. e5 {[%clk 0:01:19.5]} 62... Kb7 {[%clk 0:00:23.6]}
63. a5 {[%clk 0:01:18.1]} 63... Ka7 {[%clk 0:00:24.3]} 64. a6 {[%clk 0:01:20]}
64... Bc7 {[%clk 0:00:24.6]} 65. Na5 {[%clk 0:01:20.3]} 65... Ka8 {[%clk
0:00:23]} 66. Nc6 {[%clk 0:01:22.2]} 66... g5 {[%clk 0:00:22.4]} 67. Kc5 {[%clk
0:01:21.4]} 67... Bb6+ {[%clk 0:00:18.6]} 68. Kd6 {[%clk 0:01:22.5]} 68... Be3
{[%clk 0:00:16.6]} 69. Kxe6 {[%clk 0:01:24.4]} 69... Bf4 {[%clk 0:00:17.8]} 70.
Kf5 {[%clk 0:01:25.1]} 70... Be3 {[%clk 0:00:18.3]} 71. e6 {[%clk 0:01:26.1]}
71... Bc5 {[%clk 0:00:18.7]} 72. Kxg5 {[%clk 0:01:27.5]} 1-0

[Event "*** MasterClass Titled Tuesday Blitz"]
[Site "Chess.com"]
[Date "2017.12.12"]
[Round "2"]
[White "HarutyunianTigranK"]
[Black "Kacparov"]
[Result "1-0"]
[WhiteElo "2611"]
[BlackElo "2596"]
[TimeControl "180+2"]
[EndTime "13:24:43 PST"]
[Termination "HarutyunianTigranK won by resignation"]

1. c4 {[%clk 0:03:01]} 1... e6 {[%clk 0:02:58.4]} 2. g3 {[%clk 0:03:00.7]} 2...
d5 {[%clk 0:02:59.6]} 3. Bg2 {[%clk 0:03:02.1]} 3... Nf6 {[%clk 0:03:00.5]} 4.
Nf3 {[%clk 0:03:03.3]} 4... dxc4 {[%clk 0:03:00.7]} 5. Na3 {[%clk 0:03:04.3]}
5... Bxa3 {[%clk 0:03:01.1]} 6. bxa3 {[%clk 0:03:06.2]} 6... O-O {[%clk
0:03:02.1]} 7. Qc2 {[%clk 0:03:05.7]} 7... Nc6 {[%clk 0:03:01.3]} 8. Bb2 {[%clk
0:03:06.6]} 8... Re8 {[%clk 0:02:58.1]} 9. Ng5 {[%clk 0:02:36.3]} 9... e5 {[%clk
0:02:56]} 10. Qxc4 {[%clk 0:02:34.7]} 10... Qe7 {[%clk 0:02:48.7]} 11. O-O
{[%clk 0:02:33.9]} 11... h6 {[%clk 0:02:48.4]} 12. Ne4 {[%clk 0:02:25.6]} 12...
Nxe4 {[%clk 0:02:48.8]} 13. Bxe4 {[%clk 0:02:24.5]} 13... Bd7 {[%clk 0:02:43.4]}
14. Rac1 {[%clk 0:02:22.9]} 14... Rab8 {[%clk 0:02:40.8]} 15. d3 {[%clk
0:02:14.3]} 15... Qd6 {[%clk 0:02:39.8]} 16. a4 {[%clk 0:02:10]} 16... Re7
{[%clk 0:02:27.7]} 17. Qc3 {[%clk 0:02:02]} 17... Nd4 {[%clk 0:02:23.8]} 18.
Rfe1 {[%clk 0:02:01.5]} 18... Ree8 {[%clk 0:01:21.2]} 19. Qxc7 {[%clk
0:01:38.4]} 19... Qxc7 {[%clk 0:01:21.8]} 20. Rxc7 {[%clk 0:01:40.3]} 20... Bxa4
{[%clk 0:01:23.2]} 21. Bxd4 {[%clk 0:01:32.3]} 21... exd4 {[%clk 0:01:23.7]} 22.
Bxb7 {[%clk 0:01:33.2]} 22... Re5 {[%clk 0:01:15.6]} 23. Bf3 {[%clk 0:01:29.9]}
23... a5 {[%clk 0:01:16.2]} 24. Rc4 {[%clk 0:01:25.3]} 24... Rb4 {[%clk
0:01:16.4]} 25. Rxb4 {[%clk 0:01:24.9]} 25... axb4 {[%clk 0:01:18.3]} 26. Rb1
{[%clk 0:01:26.4]} 26... Rb5 {[%clk 0:01:09.6]} 27. Kg2 {[%clk 0:01:19.1]} 27...
Rb6 {[%clk 0:01:04.9]} 28. Bd5 {[%clk 0:01:14.7]} 28... Kf8 {[%clk 0:01:01.9]}
29. h4 {[%clk 0:01:11.9]} 29... Ke7 {[%clk 0:01:02.3]} 30. Rc1 {[%clk
0:01:11.9]} 30... f5 {[%clk 0:00:43.9]} 31. Rc4 {[%clk 0:01:01.3]} 31... Bd1
{[%clk 0:00:35.3]} 32. Bf3 {[%clk 0:00:58.6]} 32... g5 {[%clk 0:00:29.7]} 33.
hxg5 {[%clk 0:00:58.7]} 33... hxg5 {[%clk 0:00:31.6]} 34. g4 {[%clk 0:00:53.2]}
34... fxg4 {[%clk 0:00:32.4]} 35. Bxg4 {[%clk 0:00:55.1]} 35... Kf6 {[%clk
0:00:29]} 36. Rxd4 {[%clk 0:00:53.2]} 36... Bc2 {[%clk 0:00:30.2]} 37. Rd8
{[%clk 0:00:46]} 37... Bb1 {[%clk 0:00:11.7]} 38. Rf8+ {[%clk 0:00:45.7]} 38...
Ke5 {[%clk 0:00:12.5]} 39. Ra8 {[%clk 0:00:47.6]} 39... Kd4 {[%clk 0:00:13.2]}
40. Bf3 {[%clk 0:00:32]} 40... Kc3 {[%clk 0:00:14]} 41. Bd5 {[%clk 0:00:31.5]}
41... Kb2 {[%clk 0:00:13.9]} 42. Bb3 {[%clk 0:00:30.9]} 42... Rc6 {[%clk
0:00:11.6]} 43. Ra4 {[%clk 0:00:28.7]} 43... Kc3 {[%clk 0:00:12.2]} 44. d4
{[%clk 0:00:25.2]} 44... Rd6 {[%clk 0:00:12.6]} 45. e3 {[%clk 0:00:26.3]} 45...
Be4+ {[%clk 0:00:13.5]} 46. f3 {[%clk 0:00:25.9]} 46... Bb7 {[%clk 0:00:13.6]}
47. Ra5 {[%clk 0:00:26.3]} 47... Rf6 {[%clk 0:00:14.2]} 48. Bd5 {[%clk
0:00:19.1]} 48... Bxd5 {[%clk 0:00:14.5]} 49. Rxd5 {[%clk 0:00:21]} 49... Ra6
{[%clk 0:00:15.3]} 50. Rc5+ {[%clk 0:00:21]} 50... Kd3 {[%clk 0:00:16]} 51. Rb5
{[%clk 0:00:21]} 51... Rxa2+ {[%clk 0:00:16.7]} 52. Kg3 {[%clk 0:00:21.5]} 52...
Kc3 {[%clk 0:00:17.9]} 53. d5 {[%clk 0:00:21.3]} 53... b3 {[%clk 0:00:19]} 54.
e4 {[%clk 0:00:22.7]} 54... b2 {[%clk 0:00:19.5]} 55. e5 {[%clk 0:00:24.2]}
55... Ra1 {[%clk 0:00:19]} 56. d6 {[%clk 0:00:25.1]} 56... b1=Q {[%clk
0:00:17.1]} 57. Rxb1 {[%clk 0:00:26]} 57... Rxb1 {[%clk 0:00:19]} 58. d7 {[%clk
0:00:27.1]} 58... Rd1 {[%clk 0:00:18.8]} 59. e6 {[%clk 0:00:28.2]} 59... Kc4
{[%clk 0:00:17.8]} 60. e7 {[%clk 0:00:29.3]} 60... Rxd7 {[%clk 0:00:18.7]} 61.
e8=Q {[%clk 0:00:30.6]} 61... Rd5 {[%clk 0:00:19.8]} 62. Kg4 {[%clk 0:00:28.4]}
62... Kc5 {[%clk 0:00:20]} 63. Qf8+ {[%clk 0:00:28]} 63... Kd4 {[%clk
0:00:20.4]} 64. Qb4+ {[%clk 0:00:28.6]} 64... Ke3 {[%clk 0:00:21.1]} 65. Qe4+
{[%clk 0:00:29.6]} 1-0

[Event "*** MasterClass Titled Tuesday Blitz"]
[Site "Chess.com"]
[Date "2017.12.12"]
[Round "2"]
[White "amaidel"]
[Black "Goala"]
[Result "1/2-1/2"]
[WhiteElo "2483"]
[BlackElo "2286"]
[TimeControl "180+2"]
[EndTime "13:24:54 PST"]
[Termination "Game drawn - insufficient material"]

1. e4 {[%clk 0:03:00.8]} 1... e6 {[%clk 0:02:33.3]} 2. d4 {[%clk 0:02:36.5]}
2... d5 {[%clk 0:02:33.8]} 3. Nd2 {[%clk 0:02:36.6]} 3... Nf6 {[%clk 0:02:34.5]}
4. e5 {[%clk 0:02:37.4]} 4... Nfd7 {[%clk 0:02:35.9]} 5. Bd3 {[%clk 0:02:38.8]}
5... c5 {[%clk 0:02:37.5]} 6. c3 {[%clk 0:02:40.3]} 6... Nc6 {[%clk 0:02:38.8]}
7. Ne2 {[%clk 0:02:41.2]} 7... cxd4 {[%clk 0:02:40.1]} 8. cxd4 {[%clk
0:02:43.1]} 8... f6 {[%clk 0:02:42]} 9. exf6 {[%clk 0:02:43.9]} 9... Nxf6 {[%clk
0:02:43.9]} 10. Nf3 {[%clk 0:02:44.6]} 10... Bd6 {[%clk 0:02:45.8]} 11. O-O
{[%clk 0:02:46]} 11... Qc7 {[%clk 0:02:47.1]} 12. Bg5 {[%clk 0:02:45.6]} 12...
O-O {[%clk 0:02:47.7]} 13. Bh4 {[%clk 0:02:46.1]} 13... Nh5 {[%clk 0:02:48.5]}
14. Qc2 {[%clk 0:02:45.9]} 14... h6 {[%clk 0:02:49.6]} 15. Bh7+ {[%clk
0:02:45.9]} 15... Kh8 {[%clk 0:02:49.6]} 16. Bg6 {[%clk 0:02:46.8]} 16... Rxf3
{[%clk 0:02:50.5]} 17. Bxh5 {[%clk 0:02:47.7]} 17... Rf5 {[%clk 0:02:51.4]} 18.
Bg4 {[%clk 0:02:47.8]} 18... Bxh2+ {[%clk 0:02:52.3]} 19. Kh1 {[%clk 0:02:48.1]}
19... Bd6 {[%clk 0:02:54.2]} 20. Bxf5 {[%clk 0:02:45.7]} 20... exf5 {[%clk
0:02:56.1]} 21. f4 {[%clk 0:02:40.3]} 21... Qf7 {[%clk 0:02:55.2]} 22. Kg1
{[%clk 0:02:30.3]} 22... Bd7 {[%clk 0:02:52.5]} 23. Rad1 {[%clk 0:02:27.5]}
23... Re8 {[%clk 0:02:52.6]} 24. Rfe1 {[%clk 0:02:23.3]} 24... Re4 {[%clk
0:02:25.3]} 25. Bf2 {[%clk 0:02:18.7]} 25... Bb4 {[%clk 0:02:09.4]} 26. Rf1
{[%clk 0:02:15]} 26... Qe7 {[%clk 0:01:54.2]} 27. Nc3 {[%clk 0:02:14.8]} 27...
Bxc3 {[%clk 0:01:54.3]} 28. bxc3 {[%clk 0:02:14.7]} 28... Rxf4 {[%clk
0:01:53.8]} 29. Rde1 {[%clk 0:02:12]} 29... Re4 {[%clk 0:01:43.6]} 30. Rxe4
{[%clk 0:02:12.5]} 30... dxe4 {[%clk 0:01:45.5]} 31. d5 {[%clk 0:02:12]} 31...
Ne5 {[%clk 0:01:44.8]} 32. Bxa7 {[%clk 0:02:08.8]} 32... Ng4 {[%clk 0:01:43.5]}
33. Qe2 {[%clk 0:01:55.1]} 33... Qh4 {[%clk 0:01:34.1]} 34. Bb8 {[%clk
0:01:55.2]} 34... e3 {[%clk 0:01:27.1]} 35. Qf3 {[%clk 0:01:45.4]} 35... Bb5
{[%clk 0:01:18.8]} 36. Bg3 {[%clk 0:01:44.1]} 36... Qf6 {[%clk 0:01:03.2]} 37.
Rb1 {[%clk 0:01:24.3]} 37... Ba6 {[%clk 0:00:50.1]} 38. d6 {[%clk 0:01:24.6]}
38... e2 {[%clk 0:00:44.6]} 39. d7 {[%clk 0:01:21.7]} 39... Qd8 {[%clk
0:00:34.5]} 40. Qd5 {[%clk 0:01:05.7]} 40... Nf6 {[%clk 0:00:31.8]} 41. Bc7
{[%clk 0:01:06.1]} 41... Qxd7 {[%clk 0:00:28.7]} 42. Qxd7 {[%clk 0:01:04.2]}
42... Nxd7 {[%clk 0:00:30.6]} 43. Kf2 {[%clk 0:01:05.1]} 43... Nc5 {[%clk
0:00:30.2]} 44. Ke3 {[%clk 0:00:58.8]} 44... Ne4 {[%clk 0:00:24]} 45. Be5 {[%clk
0:00:56]} 45... Kg8 {[%clk 0:00:22.7]} 46. g4 {[%clk 0:00:56.3]} 46... g6 {[%clk
0:00:21.8]} 47. gxf5 {[%clk 0:00:56.7]} 47... gxf5 {[%clk 0:00:23.7]} 48. Kf4
{[%clk 0:00:42.7]} 48... Ng5 {[%clk 0:00:12.9]} 49. Bf6 {[%clk 0:00:39.8]} 49...
Kf7 {[%clk 0:00:11.9]} 50. Bxg5 {[%clk 0:00:39.9]} 50... hxg5+ {[%clk
0:00:13.8]} 51. Kxg5 {[%clk 0:00:41]} 51... Ke6 {[%clk 0:00:15.3]} 52. Kf4
{[%clk 0:00:41.3]} 52... Kd5 {[%clk 0:00:15]} 53. Rc1 {[%clk 0:00:35.6]} 53...
Kc4 {[%clk 0:00:13.9]} 54. Ke3 {[%clk 0:00:32.4]} 54... Kd5 {[%clk 0:00:09.9]}
55. Rg1 {[%clk 0:00:32]} 55... Ke5 {[%clk 0:00:09]} 56. Kf2 {[%clk 0:00:30.1]}
56... Ke4 {[%clk 0:00:09.5]} 57. Rg3 {[%clk 0:00:22.6]} 57... f4 {[%clk
0:00:10.5]} 58. Rg7 {[%clk 0:00:23.3]} 58... Kd3 {[%clk 0:00:10.7]} 59. Ke1
{[%clk 0:00:20.8]} 59... Kxc3 {[%clk 0:00:10.9]} 60. Rf7 {[%clk 0:00:21.5]}
60... Kb2 {[%clk 0:00:12.1]} 61. Rxf4 {[%clk 0:00:22.4]} 61... Kxa2 {[%clk
0:00:13.3]} 62. Rb4 {[%clk 0:00:23.2]} 62... Ka3 {[%clk 0:00:14.2]} 63. Rxb7
{[%clk 0:00:23.6]} 63... Bxb7 {[%clk 0:00:14.7]} 64. Kxe2 {[%clk 0:00:24.8]}
1/2-1/2